[Event "45th FIDE Olympiad 2024"]
[Site "Budapest"]
[Date "2024.09.12"]
[Round "2.51"]
[White "Asefi, Zaheeruddeen"]
[Black "Shaw, Clifford"]
[Result "1-0"]
[ECO "A96"]
[WhiteElo "1947"]
[BlackElo "1744"]
[Annotator "NA"]
[PlyCount "59"]
[EventDate "2024.09.05"]
[EventType "team-tourn"]
[EventCountry "HUN"]
[SourceTitle "playchess.com"]
[Source "ChessBase"]
[SourceQuality "1"]
[WhiteTeam "Afghanistan"]
[BlackTeam "Cayman Islands"]
[BlackTeamCountry "CAY"]
[TimeControl "40/5400+30:1800+30"]

1. d4 e6 2. c4 f5 3. g3 Nf6 4. Bg2 Be7 5. Nc3 O-O 6. Qc2 d6 7. Nf3 a5 8. O-O Nc6 9. Rd1 Qe8 10. Nb5 Bd8 11. a3 e5 12. dxe5 dxe5 13. Be3 Qh5 14. Bc5 Re8 15. Nd2 e4 16. Nf1 f4 17. Bd4 f3 18. exf3 exf3 19. Bh1 Re2 20. Qb3 Bg4 21. Nc3 Nxd4 22. Rxd4 Be7 23. Qxb7 Rf8 24. b4 c5 25. Rd3 cxb4 26. Nxe2 fxe2 27. Qxe7 exf1=Q+ 28. Rxf1 Be2 29. Rd8 Re8 30. Bd5+ 1-0

[Event "45th FIDE Olympiad 2024"]
[Site "Budapest"]
[Date "2024.09.12"]
[Round "2.52"]
[White "Marjanovic, Dejan"]
[Black "Santos Latasa, Jaime"]
[Result "1/2-1/2"]
[ECO "A46"]
[WhiteElo "2365"]
[BlackElo "2624"]
[Annotator "TA"]
[PlyCount "90"]
[EventDate "2024.09.05"]
[EventType "team-tourn"]
[EventCountry "HUN"]
[SourceTitle "playchess.com"]
[Source "ChessBase"]
[SourceQuality "1"]
[WhiteTeam "Bosnia & Herzegovina"]
[BlackTeam "Spain"]
[WhiteTeamCountry "BIH"]
[BlackTeamCountry "ESP"]
[TimeControl "40/5400+30:1800+30"]

{[%evp 12,90,20,7,9,11,10,12,22,11,8,16,13,10,8,0,14,-12,0,0,9,0,0,3,10,-15,-32,-39,-41,-39,-31,-24,-25,-35,-29,-30,-29,-44,-44,-62,-58,-88,-60,-75,-69,-67,-71,-80,-63,-58,-70,-67,-63,-61,-63,-61,-50,-56,-64,-80,-80,-80,-87,-78,-64,-67,-58,-72,-50,-28,-13,-14,0,0,0,0,0,0,0,0,0]} 1. d4 {[%emt 0:00:05]} Nf6 {[%emt 0:00:08]} 2. Nf3 {[%emt 0:00:24]} e6 {[%emt 0:00:21]} 3. Bg5 {[%emt 0:00:40]} h6 {[%emt 0:00:50]} 4. Bh4 {[%emt 0:00:14]} c5 {[%emt 0:00:05]} 5. e3 {[%emt 0:01:25]} cxd4 {[%emt 0:00:41]} 6. exd4 {[%emt 0:03:17]} Be7 {[%emt 0:00:21]} 7. Nbd2 {[%emt 0:03:45]} Nc6 {[%emt 0:01:27]} 8. c3 {[%emt 0:02:10]} O-O {[%emt 0:00:30]} 9. Bd3 {[%emt 0:03:56]} Nh5 {[%emt 0:00:52][%cal Bf6h5,Bh5f4,Bf4d5][%mdl 32]} 10. Bxe7 {[%emt 0:02:11]} Nxe7 {[%emt 0:03:22]} 11. O-O {[%emt 0:08:51]} Nf4 {[%emt 0:02:06]} 12. Bc2 {[%emt 0:05:55]} b6 {[%emt 0:00:30]} 13. Re1 {[%emt 0:00:44]} Qc7 {[%emt 0:02:13]} 14. Ne5 {[%emt 0:15:39]} d6 {[%emt 0:02:23]} 15. Nd3 {[%emt 0:00:46]} Nfd5 {[%emt 0:00:13]} 16. Nf1 {[%emt 0:15:43]} Bb7 {[%emt 0:01:53]} 17. Ne3 {[%emt 0:02:33]} Rae8 {[%emt 0:02:42]} 18. a4 {[%emt 0:00:47]} e5 {[%emt 0:04:10]} 19. Bb3 {[%emt 0:06:39]} Nxe3 {[%emt 0:06:54]} 20. fxe3 {[%emt 0:01:03]} Nd5 {[%emt 0:03:43]} 21. Qd2 {[%emt 0:06:03]} Nf6 {[%emt 0:02:02]} 22. Rad1 {[%emt 0:01:16]} Re7 {[%emt 0:03:34]} 23. Nf2 {[%emt 0:03:47]} exd4 {[%emt 0:04:55]} 24. Qxd4 {[%emt 0:02:23]} Rd8 {[%emt 0:00:31]} 25. e4 {[%emt 0:02:37]} Re5 {[%emt 0:01:46]} 26. Bc2 {[%emt 0:01:27]} Rd7 {[%emt 0:03:16]} 27. c4 {[%emt 0:00:44]} Re6 {[%emt 0:03:22][%cal Od6d5]} 28. b3 {[%emt 0:00:37]} Rde7 {[%emt 0:00:19]} 29. Re3 {[%emt 0:02:27] [#]} d5 $1 {[%emt 0:07:05]} 30. cxd5 {[%emt 0:00:13]} Bxd5 {[%emt 0:00:16]} 31. Bb1 {[%emt 0:03:06]} Bc6 {[%emt 0:06:46]} 32. Qd8+ {[%emt 0:00:58]} Qxd8 {[%emt 0:00:12]} 33. Rxd8+ {[%emt 0:00:01]} Kh7 {[%emt 0:02:15]} 34. Rd4 {[%emt 0:03:14]} ({But not} 34. e5+ g6 35. Nd3 (35. exf6 $2 {is the wrong capture.} Rxe3 36. h3 Re1+ 37. Kh2 R7e2 $19) 35... Nd5 $17) 34... g6 {[%emt 0:00:18]} 35. Bd3 {[%emt 0:00:53] [#] Bc4 would now be deadly.} Kg7 {[%emt 0:01:10]} 36. h3 {[%emt 0:01:18]} h5 {[%emt 0:02:36]} 37. Bc2 {[%emt 0:00:29]} Rd7 {[%emt 0:03:37]} 38. Red3 {[%emt 0:00:33]} Kf8 {[%emt 0:01:34]} 39. b4 {[%emt 0:00:33]} Rxd4 {[%emt 0:00:33]} 40. Rxd4 {[%emt 0:00:01]} Ke7 {[%emt 0:00:47]} 41. Bb3 {[%emt 0:09:30] The position is equal.} Re5 {[%emt 0:01:06][%cal Rc6e4]} 42. Rc4 {[%emt 0:00:39]} Kd6 {[%emt 0:03:29][%cal Rc6e4]} 43. Rd4+ {[%emt 0:00:38]} Ke7 {[%emt 0:01:00][%cal Rc6e4]} 44. Rc4 {[%emt 0:00:16]} Kd6 {[%emt 0:07:24][%cal Rc6e4]} 45. Rd4+ {[%emt 0:00:11]} Ke7 {[%emt 0:00:05] Weighted Error Value: White=0.07 (flawless) /Black=0.04 (flawless) .  Inaccurate:     	White=2     	Black=1      OK:         	White=8     	Black=19     Best:        	White=4     	Black=1} 1/2-1/2

[Event "45th FIDE Olympiad 2024"]
[Site "Budapest"]
[Date "2024.09.12"]
[Round "2.53"]
[White "Bachmann, Axel"]
[Black "Vachier-Lagrave, Maxime"]
[Result "1/2-1/2"]
[ECO "A33"]
[WhiteElo "2560"]
[BlackElo "2731"]
[Annotator "TA"]
[PlyCount "83"]
[EventDate "2024.09.05"]
[EventType "team-tourn"]
[EventCountry "HUN"]
[SourceTitle "playchess.com"]
[Source "ChessBase"]
[SourceQuality "1"]
[WhiteTeam "Paraguay"]
[BlackTeam "France"]
[WhiteTeamCountry "PAR"]
[BlackTeamCountry "FRA"]
[TimeControl "40/5400+30:1800+30"]

{[%evp 12,83,8,4,9,8,32,0,0,0,0,4,11,8,4,9,10,21,27,8,16,17,20,23,11,0,8,0,0,-11,-16,-12,-7,-10,-2,-8,0,0,0,0,0,0,0,0,0,0,0,0,0,0,0,0,0,0,0,-6,-6,-6,-6,-6,-6,-6,0,-3,0,0,0,0,0,0,0,0,0,0]} 1. Nf3 {[%emt 0:00:03]} c5 {[%emt 0:00:04]} 2. c4 {[%emt 0:00:11]} Nc6 {[%emt 0:00:04]} 3. d4 {[%emt 0:01:06]} cxd4 {[%emt 0:00:07]} 4. Nxd4 {[%emt 0:00:03]} Nf6 {[%emt 0:00:11]} 5. Nc3 {[%emt 0:01:17]} e6 {[%emt 0:00:04]} 6. a3 {[%emt 0:03:37]} Be7 {[%emt 0:01:23]} 7. e4 {[%emt 0:00:32]} O-O {[%emt 0:00:09]} 8. Nf3 {[%emt 0:05:33]} Qa5 {[%emt 0:02:54]} 9. Bd2 {[%emt 0:03:05][%cal Oc3d5]} Qh5 {[%emt 0:01:40]} 10. Be2 {[%emt 0:15:55]} d5 {[%emt 0:01:44]} 11. exd5 {[%emt 0:07:11]} exd5 {[%emt 0:00:07]} 12. cxd5 {[%emt 0:02:44]} Nxd5 {[%emt 0:00:55] [#]} 13. Nd4 $1 {[%emt 0:06:41]} Qe5 {[%emt 0:00:12]} (13... Qh4 14. Nxc6) 14. Nxc6 {[%emt 0:03:09]} bxc6 {[%emt 0:00:04]} 15. Nxd5 {[%emt 0:00:08]} cxd5 {[%emt 0:03:41]} 16. Bc3 {[%emt 0:00:42]} Qg5 {[%emt 0:01:02]} 17. O-O {[%emt 0:00:18]} Rd8 {[%emt 0:03:20]} 18. Bf3 {[%emt 0:03:46] The position is equal.} Be6 {[%emt 0:02:12]} 19. Re1 {[%emt 0:00:51]} Bf6 {[%emt 0:00:15]} 20. Re2 {[%emt 0:09:38]} Bxc3 {[%emt 0:02:54]} 21. bxc3 {[%emt 0:00:07]} Rac8 {[%emt 0:07:27]} 22. Re3 {[%emt 0:05:18]} Qf6 {[%emt 0:04:06]} 23. Rc1 {[%emt 0:01:42]} d4 {[%emt 0:02:27]} 24. cxd4 {[%emt 0:00:05]} Qxd4 {[%emt 0:01:30]} 25. Rxc8 {[%emt 0:01:34]} Qxd1+ {[%emt 0:00:49]} 26. Bxd1 {[%emt 0:02:50]} Rxc8 $11 {[%emt 0:00:16][%mdl 4096] Endgame. KRB-KRB} 27. Kf1 {[%emt 0:00:19]} Rc1 {[%emt 0:00:51]} 28. Ke1 {[%emt 0:00:38]} Kf8 {[%emt 0:03:22]} 29. Kd2 {[%emt 0:00:38]} Ra1 {[%emt 0:00:58]} 30. Rc3 {[%emt 0:00:22]} a5 {[%emt 0:00:56]} 31. a4 {[%emt 0:06:54]} Bd7 {[%emt 0:00:12]} 32. Rc4 $1 {[%emt 0:00:07]} Ke7 {[%emt 0:02:58]} 33. Re4+ {[%emt 0:06:01]} Kd6 {[%emt 0:00:40]} 34. Rd4+ {[%emt 0:00:05]} Kc7 {[%emt 0:01:07]} 35. Bb3 {[%emt 0:01:22]} f6 {[%emt 0:02:43]} 36. h4 {[%emt 0:02:45]} g5 {[%emt 0:06:42]} 37. g3 {[%emt 0:03:07]} h6 {[%emt 0:01:21]} 38. Rc4+ {[%emt 0:00:09]} Kd6 {[%emt 0:00:16]} 39. Rd4+ {[%emt 0:00:04]} Kc7 {[%emt 0:00:05]} 40. Rc4+ {[%emt 0:00:03]} Kd6 {[%emt 0:00:17]} 41. Rd4+ {[%emt 0:30:03]} Kc7 {[%emt 0:30:07]} 42. Rc4+ {[%emt 0:00:06] A balanced but interesting game.   Weighted Error Value: White=0.03 (flawless) /Black=0.02 (flawless) .  Inaccurate:     	White=1     	---        OK:         	White=20    	Black=15     Best:        	White=1     	---        Strong:       	White=1     	---} 1/2-1/2

[Event "45th FIDE Olympiad 2024"]
[Site "Budapest"]
[Date "2024.09.12"]
[Round "2.53"]
[White "Andrade, Ivan"]
[Black "Solomon, Joshua"]
[Result "1-0"]
[ECO "B12"]
[WhiteElo "2132"]
[BlackElo "1587"]
[Annotator "NA"]
[PlyCount "89"]
[EventDate "2024.09.05"]
[EventType "team-tourn"]
[EventCountry "HUN"]
[SourceTitle "playchess.com"]
[Source "ChessBase"]
[SourceQuality "1"]
[WhiteTeam "Mozambique"]
[BlackTeam "Antigua and Barbuda"]
[WhiteTeamCountry "MOZ"]
[TimeControl "40/5400+30:1800+30"]

1. e4 c6 2. d4 d5 3. e5 Bf5 4. h4 h6 5. g4 Bh7 6. e6 fxe6 7. Bd3 Bxd3 8. Qxd3 Qd6 9. Ne2 e5 10. dxe5 Qxe5 11. Nbc3 Na6 12. Bf4 Qf6 13. Qg3 O-O-O 14. O-O-O e6 15. g5 Qf7 16. g6 Qe8 17. Be5 Ne7 18. Nf4 Nf5 19. Qh3 Bd6 20. Rhe1 Rf8 21. h5 b5 22. Rd2 Qe7 23. Kd1 d4 24. Bxd6 dxc3 25. Bxe7 Rxd2+ 26. Kc1 Nd4 27. bxc3 Rxc2+ 28. Kb1 Rxf4 29. cxd4 Rfxf2 30. Qxe6+ Kc7 31. Bd6+ Kb6 32. Qg8 b4 33. Qb3 Rc3 34. Bc5+ Kb5 35. a4+ Ka5 36. Bxb4+ Nxb4 37. Qxc3 Kxa4 38. Qa1+ Kb3 39. Re3+ Kc4 40. Qc3+ Kb5 41. Qc5+ Ka4 42. Qxa7+ Kb5 43. Re5+ Kc4 44. Qf7+ Kc3 45. Qxf2 1-0

[Event "45th FIDE Olympiad 2024"]
[Site "Budapest"]
[Date "2024.09.12"]
[Round "2.54"]
[White "Bacrot, Etienne"]
[Black "Delgado Ramirez, Neuris"]
[Result "1/2-1/2"]
[ECO "E11"]
[WhiteElo "2665"]
[BlackElo "2484"]
[Annotator "TA"]
[PlyCount "60"]
[EventDate "2024.09.05"]
[EventType "team-tourn"]
[EventCountry "HUN"]
[SourceTitle "playchess.com"]
[Source "ChessBase"]
[SourceQuality "1"]
[WhiteTeam "France"]
[BlackTeam "Paraguay"]
[WhiteTeamCountry "FRA"]
[BlackTeamCountry "PAR"]
[TimeControl "40/5400+30:1800+30"]

{[%evp 16,60,14,14,30,31,47,3,22,-24,-29,-26,-25,-44,-48,-39,-47,-40,-37,-46,-40,-31,-28,-54,-54,-61,-54,-58,-56,-70,-36,-36,-36,-41,-29,-27,-12,-12,-12,-12,-12,-12,0,-12,0,-12,0]} 1. d4 {[%emt 0:00:03]} Nf6 {[%emt 0:00:18]} 2. c4 {[%emt 0:00:07]} e6 {[%emt 0:00:19]} 3. Nf3 {[%emt 0:00:07]} Bb4+ {[%emt 0:02:28]} 4. Bd2 {[%emt 0:00:11]} Bxd2+ {[%emt 0:02:01]} 5. Qxd2 {[%emt 0:00:08]} d5 {[%emt 0:00:07]} 6. Nc3 {[%emt 0:00:51]} O-O {[%emt 0:01:12]} 7. e3 {[%emt 0:04:09]} Qe7 {[%emt 0:01:56]} 8. cxd5 {[%emt 0:01:00]} exd5 {[%emt 0:00:44]} 9. Bd3 {[%emt 0:00:06]} Nc6 {[%emt 0:01:09]} 10. h3 {[%emt 0:02:56]} Rd8 {[%emt 0:02:17]} 11. Qe2 {[%emt 0:13:49]} Ne4 {[%emt 0:07:07]} 12. Nd2 {[%emt 0:03:55]} (12. a3 {deserves consideration.}) 12... Nxd2 $11 {[%emt 0:02:31]} 13. Kxd2 {[%emt 0:01:40]} Nb4 {[%emt 0:02:19]} 14. a3 {[%emt 0:02:27] Dodges c5} Nxd3 {[%emt 0:03:20]} 15. Qxd3 {[%emt 0:00:44]} Qf6 {[%emt 0:00:45]} 16. Ke2 {[%emt 0:02:44]} Bf5 {[%emt 0:01:03]} 17. Qd2 {[%emt 0:00:04] [#]} c5 $1 {[%emt 0:05:23]} 18. f3 {[%emt 0:03:31]} (18. Rhd1 c4) 18... c4 {[%emt 0:02:30]} 19. Kf2 {[%emt 0:01:39]} Rd6 {[%emt 0:00:50][%cal Bd8d6,Bd6b6,Bb6b5,Bb5b3][%mdl 32]} 20. Ne2 {[%emt 0:01:53] White is weak on the light squares} Re8 {[%emt 0:02:04]} 21. Rae1 {[%emt 0:00:12]} h5 {[%emt 0:08:19]} 22. h4 {[%emt 0:02:32]} g6 {[%emt 0:02:02]} 23. Nf4 {[%emt 0:03:20]} Qd8 {[%emt 0:00:16]} 24. g3 {[%emt 0:03:33]} Rb6 {[%emt 0:00:43]} 25. Rc1 {[%emt 0:01:54]} Rb5 {[%emt 0:03:32] [#] ...Qb6 is the strong threat.} 26. Rhe1 {[%emt 0:01:32] The position is equal.} a5 {[%emt 0:00:35]} 27. Re2 {[%emt 0:06:04]} Rb3 {[%emt 0:01:07]} 28. Rc3 {[%emt 0:00:16] Strongly threatening Rxb3.} Rb5 {[%emt 0:00:11]} 29. Rc1 {[%emt 0:02:17]} Rb3 {[%emt 0:02:43]} 30. Rc3 {[%emt 0:00:08] Black must now prevent Rxb3.} Rb5 {[%emt 0:00:09] Weighted Error Value: White=0.07 (flawless) /Black=0.06 (flawless) .  Mistake:       	White=1     	---        Inaccurate:     	White=2     	Black=1      OK:         	White=9     	Black=10     Best:        	---       	Black=1} 1/2-1/2

[Event "45th FIDE Olympiad 2024"]
[Site "Budapest"]
[Date "2024.09.12"]
[Round "2.54"]
[White "Matthew, Bailey"]
[Black "Jamal, Hamid Harmon Gulamo"]
[Result "0-1"]
[ECO "B27"]
[WhiteElo "1548"]
[BlackElo "1960"]
[Annotator "NA RC"]
[PlyCount "86"]
[EventDate "2024.09.05"]
[EventType "team-tourn"]
[EventCountry "HUN"]
[SourceTitle "playchess.com"]
[Source "ChessBase"]
[SourceQuality "1"]
[WhiteTeam "Antigua and Barbuda"]
[BlackTeam "Mozambique"]
[BlackTeamCountry "MOZ"]
[TimeControl "40/5400+30:1800+30"]

1. e4 c5 2. d4 cxd4 3. c3 g6 4. Nf3 Bg7 5. Bc4 d3 6. Qxd3 Nc6 7. Bf4 Qb6 8. Bb3 Nf6 9. O-O a5 10. a3 Qxb3 11. Nbd2 Qb6 12. Nc4 Qa6 13. e5 Nh5 14. Bg5 b5 15. Ne3 h6 16. Nd5 O-O 17. Nc7 Qb7 18. Nxa8 hxg5 19. Nxg5 Qxa8 20. f4 Qa7+ 21. Kh1 Ba6 22. g4 Nxf4 23. Rxf4 Nxe5 24. Qh3 Bb7+ 25. Re4 Bxe4+ 26. Nxe4 Qb7 27. Qg2 Qc6 28. Rd1 Nxg4 29. Qxg4 f5 30. Qg2 Qxe4 31. Qxe4 fxe4 32. Rxd7 Rf7 33. Rd2 e3 34. Re2 Bh6 35. Kg2 e5 36. h3 a4 37. h4 Rf2+ 38. Rxf2 exf2 39. Kxf2 Bc1 40. Ke2 Bxb2 41. Kd3 Bxa3 42. c4 bxc4+ 43. Kxc4 Be7 0-1

[Event "45th FIDE Olympiad 2024"]
[Site "Budapest"]
[Date "2024.09.12"]
[Round "2.55"]
[White "Cubas, Jose Fernando"]
[Black "Maurizzi, Marc`andria"]
[Result "0-1"]
[ECO "B45"]
[WhiteElo "2417"]
[BlackElo "2595"]
[Annotator "TA"]
[PlyCount "62"]
[EventDate "2024.09.05"]
[EventType "team-tourn"]
[EventCountry "HUN"]
[SourceTitle "playchess.com"]
[Source "ChessBase"]
[SourceQuality "1"]
[WhiteTeam "Paraguay"]
[BlackTeam "France"]
[WhiteTeamCountry "PAR"]
[BlackTeamCountry "FRA"]
[TimeControl "40/5400+30:1800+30"]

{[%evp 12,62,43,48,27,35,28,33,27,25,47,28,37,34,35,39,21,22,39,-18,0,-7,-1,-17,0,-12,-24,-21,-15,0,32,-85,-89,-94,-83,-85,-81,-71,-84,-114,-84,-206,-236,-208,-222,-218,-233,-641,-637,-674,-665,-1696,-1656]} 1. e4 {[%emt 0:00:15]} c5 {[%emt 0:00:05]} 2. Nf3 {[%emt 0:00:11]} Nc6 {[%emt 0:01:18]} 3. d4 {[%emt 0:01:02]} cxd4 {[%emt 0:00:07]} 4. Nxd4 {[%emt 0:00:04]} Nf6 {[%emt 0:00:06]} 5. Nc3 {[%emt 0:00:07]} e6 {[%emt 0:00:05]} 6. Ndb5 {[%emt 0:02:46]} Bc5 {[%emt 0:01:01]} 7. Bf4 {[%emt 0:05:06] [#] Hoping for Nc7+.} O-O {[%emt 0:02:07]} 8. Bc7 {[%emt 0:00:05]} Qe7 {[%emt 0:00:05] Strongly threatening ...d5.} 9. Bd6 $1 {[%emt 0:00:05]} Bxd6 {[%emt 0:00:05] White is slightly better.} 10. Qxd6 {[%emt 0:00:05]} Qd8 {[%emt 0:00:05]} 11. O-O-O {[%emt 0:02:49]} (11. Nc7 $5 Ne8 12. Nxe8 Rxe8 13. Bc4 $14) 11... a6 {[%emt 0:00:31]} 12. Nd4 {[%emt 0:00:28]} Ne7 {[%emt 0:00:05]} 13. h4 {[%emt 0:11:44]} b5 {[%emt 0:05:26]} 14. Nb3 {[%emt 0:01:35]} Ne8 {[%emt 0:03:53]} 15. Qb4 {[%emt 0:09:58]} (15. Qd2 $14) 15... Nc6 $11 {[%emt 0:09:36]} 16. Qc5 {[%emt 0:00:57][%cal Oc5c6] Qxc6! would now be deadly.} Qc7 {[%emt 0:02:00]} 17. a3 {[%emt 0:24:09]} d6 $36 {[%emt 0:09:13][%mdl 2048] Black fights for an advantage.} 18. Qe3 {[%emt 0:05:55]} b4 {[%emt 0:00:24]} 19. axb4 {[%emt 0:00:31]} Nxb4 {[%emt 0:00:16]} 20. h5 {[%emt 0:04:24]} h6 {[%emt 0:04:58]} 21. Qd4 {[%emt 0:05:24]} (21. g4 $14 {stays ahead.}) 21... a5 $17 {[%emt 0:07:11]} 22. Bb5 {[%emt 0:00:28]} e5 {[%emt 0:02:36]} 23. Qd2 {[%emt 0:03:56]} Qb6 {[%emt 0:11:16]} 24. Ba4 {[%emt 0:05:53]} Nf6 {[%emt 0:07:29]} 25. Qxd6 {[%emt 0:01:33]} Qxf2 {[%emt 0:00:06][%csl Gb4][%cal Rf2c2]} 26. Nc5 {[%emt 0:00:32] Now White is beyond hope.} (26. Qd2 $17 Qg3 27. Rde1) 26... Bg4 $19 {[%emt 0:03:20]} (26... Qxg2 27. Rhg1 (27. Qxe5 Bg4 $11) 27... Qf2 28. Rdf1 Qe3+ 29. Kb1 $18) 27. Rdf1 {[%emt 0:04:12]} Qe3+ {[%emt 0:00:39]} (27... Qxg2 28. Rhg1 Qh3 29. Kb1 $11) 28. Kb1 {[%emt 0:00:01]} Rac8 {[%emt 0:04:02]} (28... Bxh5 $2 29. Rxf6 (29. Qxe5 Rac8 $11) 29... gxf6 30. Rxh5 Qe1+ 31. Qd1 Qxd1+ 32. Nxd1 $18) (28... Nxh5 29. Nd7 Bxd7 30. Qxd7 $17) 29. Nd3 {[%emt 0:05:22] [#]} (29. Rxf6 gxf6 (29... Rxc5 30. Rff1 $11) 30. Nd7 Bxd7 31. Qxd7) 29... Rxc3 $1 {[%emt 0:02:25][%mdl 512] Black is clearly winning.} 30. Nxb4 {[%emt 0:02:28]} (30. Re1 Rxd3) 30... Nxe4 {[%emt 0:00:49]} 31. Qa6 {[%emt 0:02:39]} Nd2+ {[%emt 0:03:41] Weighted Error Value: White=0.73/Black=0.03 (flawless) .  Mistake:       	White=4     	---        Inaccurate:     	White=1     	Black=1      OK:         	White=11    	Black=15     Best:        	White=1     	Black=2      Strong:       	White=1     	---        Brilliant:      	---       	Black=1} 0-1

[Event "45th FIDE Olympiad 2024"]
[Site "Budapest"]
[Date "2024.09.12"]
[Round "2.55"]
[White "Napoleao, Lourenco"]
[Black "Farquhar, Abner"]
[Result "1-0"]
[ECO "D37"]
[WhiteElo "1913"]
[BlackElo "1678"]
[Annotator "NA"]
[PlyCount "75"]
[EventDate "2024.09.05"]
[EventType "team-tourn"]
[EventCountry "HUN"]
[SourceTitle "playchess.com"]
[Source "ChessBase"]
[SourceQuality "1"]
[WhiteTeam "Mozambique"]
[BlackTeam "Antigua and Barbuda"]
[WhiteTeamCountry "MOZ"]
[TimeControl "40/5400+30:1800+30"]

1. d4 d5 2. c4 e6 3. Nf3 Nf6 4. Nc3 Be7 5. Bf4 c6 6. e3 O-O 7. Qc2 Nbd7 8. Rd1 Re8 9. Bd3 dxc4 10. Bxc4 b5 11. Bd3 Bb7 12. O-O a6 13. e4 Nf8 14. Bg5 Qb6 15. Bxf6 Bxf6 16. e5 Be7 17. Ne4 h6 18. Nc5 Red8 19. Be4 Rac8 20. b4 a5 21. a3 Ba8 22. Qb3 Bxc5 23. dxc5 Qc7 24. Rd6 a4 25. Qe3 Rxd6 26. exd6 Qd8 27. Ne5 Nd7 28. Nxd7 Qxd7 29. f4 Re8 30. Re1 Kf8 31. Qd4 Bb7 32. Re3 Bc8 33. Rg3 f5 34. Bxc6 Qf7 35. Bxe8 Qb7 36. d7 e5 37. Qd6+ Kg8 38. Qg6 1-0

[Event "45th FIDE Olympiad 2024"]
[Site "Budapest"]
[Date "2024.09.12"]
[Round "2.56"]
[White "Lagarde, Maxime"]
[Black "Almiron, Antonio"]
[Result "1/2-1/2"]
[ECO "C77"]
[WhiteElo "2598"]
[BlackElo "2312"]
[Annotator "TA"]
[PlyCount "63"]
[EventDate "2024.09.05"]
[EventType "team-tourn"]
[EventCountry "HUN"]
[SourceTitle "playchess.com"]
[Source "ChessBase"]
[SourceQuality "1"]
[WhiteTeam "France"]
[BlackTeam "Paraguay"]
[WhiteTeamCountry "FRA"]
[BlackTeamCountry "PAR"]
[TimeControl "40/5400+30:1800+30"]

{[%evp 11,63,32,29,35,46,8,17,20,15,19,16,25,34,-30,14,14,41,32,38,17,30,31,46,57,59,35,31,27,87,79,80,85,92,51,86,68,91,80,94,87,78,68,79,72,77,73,68,50,62,42,62,59,89,78]} 1. e4 {[%emt 0:00:03]} e5 {[%emt 0:00:04]} 2. Nf3 {[%emt 0:00:18]} Nc6 {[%emt 0:00:04]} 3. Bb5 {[%emt 0:00:20]} a6 {[%emt 0:00:06]} 4. Ba4 {[%emt 0:00:04]} Nf6 {[%emt 0:00:04]} 5. Nc3 {[%emt 0:00:05]} d6 {[%emt 0:00:14]} 6. Bxc6+ {[%emt 0:05:25]} bxc6 {[%emt 0:00:58]} 7. d4 {[%emt 0:00:09]} Nd7 {[%emt 0:04:55]} 8. Bg5 {[%emt 0:05:51]} f6 {[%emt 0:03:24]} 9. Be3 {[%emt 0:02:07] The position is equal.} Be7 {[%emt 0:11:02]} 10. Qe2 {[%emt 0:02:02]} Nb6 {[%emt 0:11:38]} 11. O-O-O {[%emt 0:02:58] Black must now prevent dxe5.} Bd7 {[%emt 0:03:33]} 12. Rd2 {[%emt 0:11:49]} ({White should try} 12. Nh4 $14) 12... Qc8 {[%emt 0:11:37]} 13. Rhd1 {[%emt 0:00:18] [#] Hoping for dxe5.} Bg4 {[%emt 0:06:20][%cal Bd7g4,Bg4h5,Bh5f7][%mdl 32]} 14. h3 {[%emt 0:05:29]} Bh5 {[%emt 0:03:20]} 15. g4 {[%emt 0:07:01]} Bf7 {[%emt 0:00:08]} 16. d5 $36 {[%emt 0:00:32][%mdl 2048] White has some pressure.} c5 {[%emt 0:12:28]} 17. Nh4 {[%emt 0:00:30][%cal Bf3h4,Bh4g2,Bg2e3,Be3c4,Bc4a5][%mdl 32]} g6 {[%emt 0:00:19][%cal Of6f5] Against Nf5} 18. f4 {[%emt 0:13:21]} exf4 {[%emt 0:04:37]} 19. Bxf4 {[%emt 0:00:06]} Nd7 {[%emt 0:00:02]} (19... h5 $11) 20. Bh6 {[%emt 0:03:19] White is much more active.} Qb7 {[%emt 0:00:52]} 21. Rf1 {[%emt 0:02:32]} O-O-O {[%emt 0:02:25]} 22. Ng2 {[%emt 0:03:45]} Rde8 {[%emt 0:09:07]} 23. Ne3 {[%emt 0:00:43]} Bf8 {[%emt 0:02:18]} 24. Bxf8 {[%emt 0:03:51]} Rhxf8 {[%emt 0:00:07]} 25. Nc4 {[%emt 0:00:32]} g5 {[%emt 0:00:31]} 26. Rf3 {[%emt 0:06:22]} Bg6 {[%emt 0:05:10]} 27. Na5 {[%emt 0:00:46] Excellent horsemanship.} Qa8 {[%emt 0:00:02][%cal Of6f5]} 28. Re3 {[%emt 0:04:13]} Ne5 {[%emt 0:00:24]} 29. Nd1 {[%emt 0:05:45][%cal Bc3d1,Bd1f2,Bf2d3][%mdl 32]} Kd7 {[%emt 0:02:59]} 30. Nf2 {[%emt 0:00:37]} Ke7 {[%emt 0:00:03]} 31. Nd3 {[%emt 0:00:48]} Nd7 {[%emt 0:03:25] [#]} 32. h4 $1 {[%emt 0:08:19] Weighted Error Value: White=0.12 (very precise) /Black=0.13 (very precise) .  Mistake:       	White=1     	Black=1      Inaccurate:     	White=2     	Black=4      OK:         	White=10    	Black=8      Best:        	White=1     	---} 1/2-1/2

[Event "45th FIDE Olympiad 2024"]
[Site "Budapest"]
[Date "2024.09.12"]
[Round "2.56"]
[White "Solomon, Jonathan"]
[Black "Joao, Farisse"]
[Result "0-1"]
[ECO "D00"]
[WhiteElo "1536"]
[BlackElo "1851"]
[Annotator "NA"]
[PlyCount "102"]
[EventDate "2024.09.05"]
[EventType "team-tourn"]
[EventCountry "HUN"]
[SourceTitle "playchess.com"]
[Source "ChessBase"]
[SourceQuality "1"]
[WhiteTeam "Antigua and Barbuda"]
[BlackTeam "Mozambique"]
[BlackTeamCountry "MOZ"]
[TimeControl "40/5400+30:1800+30"]

1. d4 d5 2. Bf4 Nf6 3. e3 g6 4. h4 h5 5. Nf3 Bg7 6. Nbd2 Bf5 7. c4 c6 8. Qb3 Qb6 9. Be2 O-O 10. O-O Nbd7 11. Rac1 Rfe8 12. c5 Qxb3 13. axb3 Ne4 14. Nxe4 Bxe4 15. Nd2 Bf5 16. Nf3 Bg4 17. Rfe1 Bxf3 18. Bxf3 e5 19. dxe5 Nxe5 20. Bxe5 Bxe5 21. Rc2 Rad8 22. Rd1 Kg7 23. b4 a6 24. b3 Rd7 25. Rd3 f5 26. g3 Kf6 27. Kg2 Rh7 28. Bd1 Bc7 29. f4 Re4 30. b5 axb5 31. Ra2 Rd7 32. Ra7 Bd8 33. Kf3 Be7 34. Rc3 b4 35. Rc1 d4 36. exd4 Rexd4 37. Be2 R4d5 38. Ra5 b6 39. Ra6 Bxc5 40. Ra8 Rd8 41. Ra7 R5d7 42. Rxc5 bxc5 43. Rxd7 Rxd7 44. Bc4 Re7 45. Kf2 Re4 46. Bd3 c4 47. Bc2 cxb3 48. Bxb3 c5 49. Bc2 c4 50. Bxe4 fxe4 51. Ke2 c3 0-1